[Event "OGD Prinsenstad-toernooi - A groep"]
[Site "Delft"]
[Date "2010.04.04"]
[Round "6.1"]
[White "Nikolic, Pedrag"]
[Black "Fedorchuk, Sergey"]
[Result "1/2-1/2"]
[ECO "E11"]
[WhiteElo "2596"]
[BlackElo "2649"]
[PlyCount "141"]
[EventDate "2010.04.02"]
[EventType "tourn"]
[EventRounds "6"]
[EventCountry "NED"]
[Source "DSC"]
[SourceDate "2010.02.04"]
[TimeControl "6300"]

1. d4 Nf6 2. c4 e6 3. Nf3 Bb4+ 4. Bd2 Bxd2+ 5. Qxd2 d5 6. g3 c6 7. Qc2 b6 8.
Bg2 Ba6 9. Nbd2 O-O 10. O-O Nbd7 11. Rac1 Rc8 12. Rfd1 Qc7 13. e3 Qb8 14. b4 c5
15. dxc5 bxc5 16. b5 Bb7 17. a4 Nb6 18. Ne1 dxc4 19. Bxb7 Qxb7 20. Nxc4 Nxc4
21. Qxc4 Nd7 22. Nd3 h6 23. a5 Rb8 24. Rb1 Qc7 25. Ra1 Rb7 26. f4 Rfb8 27. Rdb1
Qd6 28. e4 e5 29. fxe5 Nxe5 30. Nxe5 Qxe5 31. Ra2 Rd8 32. Rc2 Rd4 33. Qxc5 Qxe4
34. Rf1 Rb4 35. b6 axb6 36. axb6 R4xb6 37. Qc8+ Kh7 38. Qf5+ Qxf5 39. Rxf5 g6
40. Rfc5 h5 41. h4 Kg7 42. Kg2 Rb3 43. R5c3 Rb1 44. Rc7 Rxc7 45. Rxc7 Rb2+ 46.
Kf3 Rb3+ 47. Kf4 Kf6 48. Rc6+ Ke7 49. Rc7+ Ke6 50. Rc6+ Kd7 51. Ra6 Rd3 52.
Ra7+ Ke6 53. Ra6+ Rd6 54. Ra7 Rd4+ 55. Ke3 Rd5 56. Ke4 Rd6 57. Ra8 Rb6 58. Ra5
Rb4+ 59. Kf3 Rd4 60. Ke3 Rd5 61. Ra7 f6 62. Ke4 Re5+ 63. Kf4 g5+ 64. hxg5 fxg5+
65. Kf3 g4+ 66. Kf4 Rf5+ 67. Ke4 Rf3 68. Ra5 Rxg3 69. Rxh5 Ra3 70. Kf4 Ra4+ 71.
Kg3 1/2-1/2

[Event "OGD Prinsenstad-toernooi - A groep"]
[Site "Delft"]
[Date "2010.04.04"]
[Round "6.2"]
[White "Reinderman, Dimitri"]
[Black "Meng, Roger"]
[Result "1-0"]
[ECO "A26"]
[WhiteElo "2578"]
[BlackElo "2167"]
[PlyCount "67"]
[EventDate "2010.04.02"]
[EventType "tourn"]
[EventRounds "6"]
[EventCountry "NED"]
[Source "DSC"]
[SourceDate "2010.02.04"]
[TimeControl "6300"]

1. c4 e5 2. g3 Nc6 3. Nc3 g6 4. Bg2 Bg7 5. e4 d6 6. Nge2 Nge7 7. d3 Be6 8. Nd5
Nd4 9. Nxd4 exd4 10. Bg5 Bxd5 11. cxd5 O-O 12. h4 h6 13. Bd2 Qe8 14. O-O Qb5
15. Qc2 c6 16. a4 Qb6 17. b4 cxd5 18. exd5 Rac8 19. Qb3 Rc7 20. Rfe1 Kh7 21.
Rab1 a6 22. Qd1 Ng8 23. h5 Nf6 24. hxg6+ fxg6 25. Re6 Rcf7 26. Bf4 Ne8 27. Qe2
Qd8 28. Re1 Nf6 29. Bxd6 Qd7 30. Bxf8 Bxf8 31. Qe5 Ng4 32. Qe4 Nxf2 33. Qxg6+
Kh8 34. Rf6 1-0

[Event "OGD Prinsenstad-toernooi - A groep"]
[Site "Delft"]
[Date "2010.04.04"]
[Round "6.3"]
[White "Goes, Sten"]
[Black "Slingerland, Fred"]
[Result "0-1"]
[ECO "B67"]
[WhiteElo "2067"]
[BlackElo "2385"]
[PlyCount "86"]
[EventDate "2010.04.02"]
[EventType "tourn"]
[EventRounds "6"]
[EventCountry "NED"]
[Source "DSC"]
[SourceDate "2010.02.04"]
[TimeControl "6300"]

1. e4 c5 2. Nf3 Nc6 3. d4 cxd4 4. Nxd4 Nf6 5. Nc3 d6 6. Bg5 e6 7. Qd2 a6 8.
O-O-O Bd7 9. f4 b5 10. e5 dxe5 11. Nxc6 Bxc6 12. Qxd8+ Rxd8 13. Rxd8+ Kxd8 14.
fxe5 h6 15. Bxf6+ gxf6 16. exf6 Rg8 17. Be2 Rxg2 18. Rd1+ Ke8 19. Bd3 Rxh2 20.
a4 b4 21. Ne2 Bxa4 22. Nd4 Bd7 23. Bxa6 Rf2 24. Rf1 Rxf1+ 25. Bxf1 Bd6 26. Nf3
Bc6 27. Nd4 Bd5 28. Bb5+ Kd8 29. c4 bxc3 30. bxc3 Be5 31. c4 Bb7 32. Nc6+ Bxc6
33. Bxc6 Bxf6 34. Kd2 Bd4 35. Kd3 Bc5 36. Ke4 Ke7 37. Kf4 f5 38. Ba4 Kf6 39.
Bc2 e5+ 40. Kf3 Kg5 41. Bb1 h5 42. Bc2 h4 43. Bb1 e4+ 0-1

[Event "OGD Prinsenstad-toernooi - A groep"]
[Site "Delft"]
[Date "2013.03.29"]
[Round "1.1"]
[White "Bakker, Guido"]
[Black "Smeets, Jan"]
[Result "0-1"]
[ECO "E21"]
[WhiteElo "2115"]
[BlackElo "2627"]
[PlyCount "46"]
[EventDate "2013.03.29"]
[EventType "swiss"]
[EventRounds "6"]
[EventCountry "NED"]
[Source "DSC"]
[SourceDate "2013.02.04"]
[TimeControl "6000+10"]

1. d4 {[%emt 0:00:00]} Nf6 {[%emt 0:00:39]} 2. c4 {[%emt 0:00:12]} e6 {
[%emt 0:00:00]} 3. Nf3 {[%emt 0:00:47]} b6 {[%emt 0:01:24]} 4. Nc3 {
[%emt 0:05:44]} Bb7 {[%emt 0:02:01]} 5. g3 {[%emt 0:01:03]} Bb4 {[%emt 0:03:45]
} 6. Qc2 {[%emt 0:00:00]} Nc6 {[%emt 0:05:09]} 7. Rg1 {[%emt 0:13:05]} Na5 {
[%emt 0:13:16]} 8. Nd2 {[%emt 0:19:58]} c5 {[%emt 0:03:50]} 9. e3 {
[%emt 0:03:17]} O-O {[%emt 0:00:00]} 10. b3 {[%emt 0:02:30]} cxd4 {
[%emt 0:01:50]} 11. exd4 {[%emt 0:00:08]} d5 {[%emt 0:00:11]} 12. a3 {
[%emt 0:02:48]} Be7 {[%emt 0:02:11]} 13. cxd5 {[%emt 0:17:50]} Nxd5 {
[%emt 0:02:20]} 14. Bb2 {[%emt 0:00:23]} Rc8 {[%emt 0:01:00]} 15. Qd3 {
[%emt 0:01:24]} Qd7 {[%emt 0:11:36]} 16. Be2 {[%emt 0:01:53]} Nxc3 {
[%emt 0:06:13]} 17. Bxc3 {[%emt 0:00:09]} Ba6 {[%emt 0:00:36]} 18. Qe3 {
[%emt 0:03:01]} Bxe2 {[%emt 0:01:26]} 19. Kxe2 {[%emt 0:00:06]} Nxb3 {
[%emt 0:00:00]} 20. Nxb3 {[%emt 0:01:33]} Qb5+ {[%emt 0:00:52]} 21. Kf3 {
[%emt 0:00:08]} Qd5+ {[%emt 0:01:06]} 22. Ke2 {[%emt 0:00:06]} Qxb3 {
[%emt 0:00:26]} 23. Bb4 {[%emt 0:01:20]} Qb2+ {[%emt 0:03:12]} 0-1

[Event "OGD Prinsenstad-toernooi - A groep"]
[Site "Delft"]
[Date "2013.03.29"]
[Round "1.2"]
[White "L'Ami, Erwin"]
[Black "Blum, Gernot"]
[Result "1-0"]
[ECO "A42"]
[WhiteElo "2615"]
[BlackElo "2105"]
[PlyCount "136"]
[EventDate "2013.03.29"]
[EventType "swiss"]
[EventRounds "6"]
[EventCountry "NED"]
[Source "DSC"]
[SourceDate "2013.02.04"]
[TimeControl "6000+10"]

1. d4 d6 2. Nf3 g6 3. c4 Bg7 4. Nc3 e5 5. e4 Nd7 6. Be2 Ne7 7. h4 h6 8. h5 g5
9. d5 f5 10. g4 f4 11. Nd2 c6 12. f3 c5 13. a3 Kf7 14. b4 b6 15. Nb5 Nf6 16.
bxc5 bxc5 17. Nb3 a6 18. Nc3 Qc7 19. Bd2 Bd7 20. Bd3 Rhb8 21. Bc2 Nc8 22. Nc1
Ra7 23. Rh2 Rab7 24. Bb3 Bf8 25. Kf1 Be7 26. Be1 Bd8 27. Rha2 Ne7 28. Ba4 Qc8
29. Bxd7 Nxd7 30. Na4 Ng8 31. Nd3 Ngf6 32. Bc3 Bc7 33. Rb2 Rxb2 34. Naxb2 Ke7
35. Ke1 Qd8 36. Qa4 Qc8 37. Nf2 Qb7 38. Kd2 Nb6 39. Qc2 Nbd7 40. Nfd3 Qc8 41.
Rg1 Qd8 42. Qa4 Qc8 43. Kc2 Nb6 44. Qc6 Nbd7 45. Na4 Qb7 46. Qxb7 Rxb7 47. Bxe5
Nxe5 48. Nxe5 dxe5 49. Nxc5 Rb6 50. Nd3 Nd7 51. c5 Rb5 52. d6+ Bxd6 53. cxd6+
Kxd6 54. Rd1 Ke6 55. Nb4 Nb8 56. Rd8 Nc6 57. Rh8 Nd4+ 58. Kd3 a5 59. Rxh6+ Kf7
60. Nc6 Nxf3 61. Rh7+ Kg8 62. Rc7 Rb3+ 63. Kc4 Nd2+ 64. Kd5 f3 65. Ne7+ Kf8 66.
Ng6+ Ke8 67. Re7+ Kd8 68. Rf7 Rb5+ 1-0

[Event "OGD Prinsenstad-toernooi - A groep"]
[Site "Delft"]
[Date "2013.03.29"]
[Round "1.3"]
[White "Schröer, Marcel"]
[Black "Reinderman, Dimitri"]
[Result "0-1"]
[ECO "A80"]
[WhiteElo "2102"]
[BlackElo "2573"]
[PlyCount "76"]
[EventDate "2013.03.29"]
[EventType "swiss"]
[EventRounds "6"]
[EventCountry "NED"]
[Source "DSC"]
[SourceDate "2013.02.04"]
[TimeControl "6000+10"]

1. d4 {[%emt 0:00:00]} f5 {[%emt 0:00:00]} 2. Nc3 {[%emt 0:00:49]} Nf6 {
[%emt 0:00:04]} 3. Bf4 {[%emt 0:02:07]} e6 {[%emt 0:00:31]} 4. e3 {
[%emt 0:01:38]} Bb4 {[%emt 0:07:34]} 5. Bd3 {[%emt 0:00:57]} Bxc3+ {
[%emt 0:03:11]} 6. bxc3 {[%emt 0:00:07]} d6 {[%emt 0:00:10]} 7. Nf3 {
[%emt 0:12:40]} Qe7 {[%emt 0:01:41]} 8. O-O {[%emt 0:09:06]} b6 {[%emt 0:05:31]
} 9. a4 {[%emt 0:05:53]} Nbd7 {[%emt 0:07:05]} 10. Re1 {[%emt 0:06:47]} O-O {
[%emt 0:08:28]} 11. a5 {[%emt 0:00:00]} Bb7 {[%emt 0:03:43]} 12. Bg5 {
[%emt 0:04:26]} Qe8 {[%emt 0:02:17]} 13. Bb5 {[%emt 0:06:01]} a6 {
[%emt 0:07:10]} 14. Bxd7 {[%emt 0:06:18]} Nxd7 {[%emt 0:01:28]} 15. axb6 {
[%emt 0:00:15]} Nxb6 {[%emt 0:01:16]} 16. Bf4 {[%emt 0:02:00]} Bd5 {
[%emt 0:06:37]} 17. Bg3 {[%emt 0:04:15]} Qc6 {[%emt 0:02:46]} 18. Ra3 {
[%emt 0:12:10]} a5 {[%emt 0:00:46]} 19. Nd2 {[%emt 0:02:26]} Bxg2 {
[%emt 0:02:00]} 20. f3 {[%emt 0:03:07]} Bh3 {[%emt 0:00:11]} 21. Qe2 {
[%emt 0:00:27]} e5 {[%emt 0:09:12]} 22. f4 {[%emt 0:07:00]} exd4 {
[%emt 0:07:47]} 23. exd4 {[%emt 0:01:00]} a4 {[%emt 0:09:55]} 24. Qf3 {
[%emt 0:05:17]} Qxf3 {[%emt 0:04:07]} 25. Nxf3 {[%emt 0:00:05]} Rfe8 {
[%emt 0:00:13]} 26. Rxe8+ {[%emt 0:02:01]} Rxe8 {[%emt 0:00:03]} 27. Kf2 {
[%emt 0:00:13]} Bg4 {[%emt 0:01:19]} 28. c4 {[%emt 0:00:00]} Bxf3 {
[%emt 0:01:29]} 29. Kxf3 {[%emt 0:00:03]} Nxc4 {[%emt 0:00:38]} 30. Rxa4 {
[%emt 0:00:01]} Re3+ {[%emt 0:00:21]} 31. Kf2 {[%emt 0:00:13]} Rc3 {
[%emt 0:00:13]} 32. Ra8+ {[%emt 0:00:59]} Kf7 {[%emt 0:00:04]} 33. Ra7 {
[%emt 0:00:46]} Rxc2+ {[%emt 0:00:26]} 34. Ke1 {[%emt 0:00:00]} Ne3 {
[%emt 0:00:45]} 35. Ra3 {[%emt 0:00:31]} Nd5 {[%emt 0:00:30]} 36. Kd1 {
[%emt 0:00:02]} Rc3 {[%emt 0:01:11]} 37. Rxc3 {[%emt 0:00:10]} Nxc3+ {
[%emt 0:00:04]} 38. Kc2 {[%emt 0:00:12]} Ne2 {[%emt 0:00:37]} 0-1

[Event "OGD Prinsenstad-toernooi - A groep"]
[Site "Delft"]
[Date "2013.03.29"]
[Round "1.4"]
[White "Andersson, Ulf"]
[Black "Haslinger, Gareth"]
[Result "1-0"]
[ECO "A96"]
[WhiteElo "2562"]
[BlackElo "2088"]
[PlyCount "69"]
[EventDate "2013.03.29"]
[EventType "swiss"]
[EventRounds "6"]
[EventCountry "NED"]
[Source "DSC"]
[SourceDate "2013.02.04"]
[TimeControl "6000+10"]

1. Nf3 f5 2. d4 Nf6 3. g3 e6 4. Bg2 Be7 5. O-O O-O 6. c4 d6 7. Nc3 a5 8. Re1
Ne4 9. Qc2 Nxc3 10. bxc3 Nc6 11. d5 exd5 12. cxd5 Ne5 13. Nd4 Qe8 14. f4 Nc4
15. Qb3 Nb6 16. e4 Qa4 17. Be3 fxe4 18. Bxe4 Bf6 19. Bf2 Bd7 20. Qb1 Kh8 21.
Qd3 Qc4 22. Qf3 g6 23. Ne6 Bxe6 24. dxe6 Qxc3 25. Rac1 Qxf3 26. Bxf3 c5 27. Rb1
Nc4 28. Rxb7 Rac8 29. Bd5 Nb2 30. e7 Rfe8 31. Bf7 Nd3 32. Bxe8 Rxe8 33. Re6 Kg7
34. Rxd6 c4 35. Bd4 1-0

[Event "OGD Prinsenstad-toernooi - A groep"]
[Site "Delft"]
[Date "2013.03.29"]
[Round "1.5"]
[White "Haver, Daan"]
[Black "Van den Doel, Erik"]
[Result "1/2-1/2"]
[ECO "C97"]
[WhiteElo "2081"]
[BlackElo "2552"]
[PlyCount "82"]
[EventDate "2013.03.29"]
[EventType "swiss"]
[EventRounds "6"]
[EventCountry "NED"]
[Source "DSC"]
[SourceDate "2013.02.04"]
[TimeControl "6000+10"]

1. e4 {[%emt 0:00:00]} e5 {[%emt 0:00:00]} 2. Nf3 {[%emt 0:00:00]} Nc6 {
[%emt 0:00:00]} 3. Bb5 {[%emt 0:00:08]} a6 {[%emt 0:00:00]} 4. Ba4 {
[%emt 0:00:05]} Nf6 {[%emt 0:00:04]} 5. O-O {[%emt 0:00:09]} Be7 {
[%emt 0:00:02]} 6. Re1 {[%emt 0:00:14]} b5 {[%emt 0:00:05]} 7. Bb3 {
[%emt 0:00:06]} d6 {[%emt 0:00:04]} 8. c3 {[%emt 0:00:06]} O-O {[%emt 0:00:05]}
9. h3 {[%emt 0:00:05]} Na5 {[%emt 0:00:48]} 10. Bc2 {[%emt 0:00:33]} c5 {
[%emt 0:00:05]} 11. d4 {[%emt 0:01:43]} Qc7 {[%emt 0:00:07]} 12. d5 {
[%emt 0:02:34]} Nc4 {[%emt 0:00:56]} 13. Nbd2 {[%emt 0:02:08]} Nxd2 {
[%emt 0:00:35]} 14. Bxd2 {[%emt 0:01:23]} Nd7 {[%emt 0:00:00]} 15. a4 {
[%emt 0:05:03]} Nb6 {[%emt 0:01:17]} 16. axb5 {[%emt 0:09:27]} axb5 {
[%emt 0:01:45]} 17. Rxa8 {[%emt 0:01:06]} Nxa8 {[%emt 0:00:06]} 18. Qe2 {
[%emt 0:02:29]} Bd7 {[%emt 0:00:45]} 19. Ra1 {[%emt 0:03:30]} Nb6 {
[%emt 0:00:00]} 20. b3 {[%emt 0:05:00]} c4 {[%emt 0:01:50]} 21. b4 {
[%emt 0:09:05]} f5 {[%emt 0:01:31]} 22. exf5 {[%emt 0:09:19]} Bxf5 {
[%emt 0:00:34]} 23. Bxf5 {[%emt 0:00:56]} Rxf5 {[%emt 0:00:05]} 24. Ra5 {
[%emt 0:02:46]} Qd7 {[%emt 0:02:00]} 25. Qe4 {[%emt 0:02:04]} Rf8 {
[%emt 0:02:00]} 26. Be3 {[%emt 0:06:08]} Na4 {[%emt 0:12:31]} 27. Ra7 {
[%emt 0:00:55]} Qe8 {[%emt 0:02:28]} 28. Qg4 {[%emt 0:04:59]} Bf6 {
[%emt 0:09:41]} 29. Bg5 {[%emt 0:12:08]} Rf7 {[%emt 0:01:07]} 30. Rxf7 {
[%emt 0:00:32]} Kxf7 {[%emt 0:00:18]} 31. Qh5+ {[%emt 0:00:55]} Ke7 {
[%emt 0:01:07]} 32. Qxh7 {[%emt 0:01:21]} Qf7 {[%emt 0:00:41]} 33. Qf5 {
[%emt 0:03:56]} Qxd5 {[%emt 0:04:50]} 34. Nh4 {[%emt 0:01:35]} Nxc3 {
[%emt 0:04:41]} 35. Bxf6+ gxf6 {[%emt 0:00:06]} 36. Qc8 {[%emt 0:04:23]} Ne2+ {
[%emt 0:08:54]} 37. Kh2 {[%emt 0:00:12]} Nd4 {[%emt 0:00:14]} 38. Qc7+ {
[%emt 0:00:40]} Ke8 {[%emt 0:00:08]} 39. Qc8+ {[%emt 0:02:37]} Ke7 {
[%emt 0:00:34]} 40. Qc7+ {[%emt 0:00:16]} Ke8 {[%emt 0:00:07]} 41. Qc8+ {
[%emt 0:00:01]} Ke7 {[%emt 0:00:06]} 1/2-1/2

[Event "OGD Prinsenstad-toernooi - A groep"]
[Site "Delft"]
[Date "2013.03.29"]
[Round "1.6"]
[White "Haslinger, Stewart"]
[Black "Oudshoorn, Arres"]
[Result "1-0"]
[ECO "B34"]
[WhiteElo "2547"]
[BlackElo "2073"]
[PlyCount "55"]
[EventDate "2013.03.29"]
[EventType "swiss"]
[EventRounds "6"]
[EventCountry "NED"]
[Source "DSC"]
[SourceDate "2013.02.04"]
[TimeControl "6000+10"]

1. e4 {[%emt 0:00:00]} c5 {[%emt 0:00:00]} 2. Nf3 {[%emt 0:00:00]} g6 {
[%emt 0:00:00]} 3. d4 {[%emt 0:00:21]} cxd4 {[%emt 0:00:05]} 4. Nxd4 {
[%emt 0:00:50]} Nf6 {[%emt 0:00:07]} 5. Nc3 {[%emt 0:02:40]} Bg7 {
[%emt 0:01:42]} 6. e5 {[%emt 0:07:56]} Ng8 {[%emt 0:00:08]} 7. Bf4 {
[%emt 0:00:19]} Nc6 {[%emt 0:01:26]} 8. Nxc6 {[%emt 0:03:44]} bxc6 {
[%emt 0:00:05]} 9. Bc4 {[%emt 0:00:16]} Nh6 {[%emt 0:07:06]} 10. Qd2 {
[%emt 0:09:45]} Ng4 {[%emt 0:05:11]} 11. Qe2 {[%emt 0:00:17]} h5 {
[%emt 0:00:05]} 12. h3 {[%emt 0:00:08]} Nh6 {[%emt 0:00:06]} 13. g4 {
[%emt 0:06:46]} hxg4 {[%emt 0:24:19]} 14. hxg4 {[%emt 0:00:31]} Kf8 {
[%emt 0:00:00]} 15. O-O-O {[%emt 0:16:00]} a5 {[%emt 0:03:49]} 16. Qe3 {
[%emt 0:02:04]} Ng8 {[%emt 0:00:57]} 17. Rxh8 {[%emt 0:00:10]} Bxh8 {
[%emt 0:00:05]} 18. Bxf7 {[%emt 0:20:34]} Kxf7 {[%emt 0:00:27]} 19. e6+ {
[%emt 0:00:03]} Kf8 {[%emt 0:04:00]} 20. Bh6+ {[%emt 0:00:27]} Nxh6 {
[%emt 0:00:11]} 21. Qxh6+ {[%emt 0:00:04]} Bg7 {[%emt 0:00:16]} 22. Qf4+ {
[%emt 0:01:41]} Bf6 {[%emt 0:00:43]} 23. g5 {[%emt 0:04:02]} d5 {[%emt 0:00:23]
} 24. gxf6 {[%emt 0:01:07]} exf6 {[%emt 0:00:00]} 25. Qh6+ {[%emt 0:01:47]} Ke7
{[%emt 0:00:10]} 26. Qg7+ {[%emt 0:00:05]} Kd6 {[%emt 0:03:25]} 27. Ne4+ {
[%emt 0:04:43]} Ke5 {[%emt 0:00:08]} 28. e7 {[%emt 0:00:25]} 1-0

[Event "OGD Prinsenstad-toernooi - A groep"]
[Site "Delft"]
[Date "2013.03.29"]
[Round "1.7"]
[White "Voogt, Bob"]
[Black "Kohlweyer, Bernd"]
[Result "0-1"]
[ECO "B51"]
[WhiteElo "2072"]
[BlackElo "2460"]
[PlyCount "214"]
[EventDate "2013.03.29"]
[EventType "swiss"]
[EventRounds "6"]
[EventCountry "NED"]
[Source "DSC"]
[SourceDate "2013.02.04"]
[TimeControl "6000+10"]

1. e4 c5 {[%emt 0:00:00]} 2. Nf3 {[%emt 0:00:06]} d6 {[%emt 0:00:10]} 3. Bb5+ {
[%emt 0:00:10]} Nd7 {[%emt 0:00:13]} 4. Nc3 {[%emt 0:00:58]} Ngf6 {
[%emt 0:00:00]} 5. d4 {[%emt 0:00:27]} cxd4 {[%emt 0:00:14]} 6. Qxd4 {
[%emt 0:00:19]} e5 {[%emt 0:00:18]} 7. Qd3 {[%emt 0:01:07]} h6 {[%emt 0:00:16]}
8. O-O {[%emt 0:00:00]} Be7 {[%emt 0:04:18]} 9. Be3 {[%emt 0:04:37]} a6 {
[%emt 0:00:10]} 10. Bxd7+ {[%emt 0:00:13]} Bxd7 {[%emt 0:00:21]} 11. h3 {
[%emt 0:01:03]} O-O {[%emt 0:13:00]} 12. Rad1 {[%emt 0:03:24]} Rc8 {
[%emt 0:06:36]} 13. Nd2 {[%emt 0:01:53]} b5 {[%emt 0:01:53]} 14. a3 {
[%emt 0:00:31]} Qc7 {[%emt 0:02:44]} 15. f4 {[%emt 0:00:00]} Rfd8 {
[%emt 0:01:45]} 16. Qe2 {[%emt 0:03:00]} Qb7 {[%emt 0:06:09]} 17. Qf2 {
[%emt 0:07:28]} exf4 {[%emt 0:13:24]} 18. Qxf4 {[%emt 0:01:24]} Be6 {
[%emt 0:00:08]} 19. Bd4 {[%emt 0:11:54]} a5 {[%emt 0:17:03]} 20. Qg3 {
[%emt 0:00:00]} Ne8 {[%emt 0:05:11]} 21. Qd3 {[%emt 0:10:00]} b4 {
[%emt 0:01:04]} 22. Nd5 {[%emt 0:03:50]} Bxd5 {[%emt 0:06:59]} 23. exd5 {
[%emt 0:00:20]} Qxd5 {[%emt 0:00:20]} 24. Bb6 {[%emt 0:03:14]} Qxd3 25. cxd3 {
[%emt 0:00:12]} Rd7 {[%emt 0:00:16]} 26. Bxa5 {[%emt 0:01:19]} bxa3 {
[%emt 0:00:07]} 27. bxa3 {[%emt 0:02:03]} d5 {[%emt 0:01:25]} 28. Bb4 {
[%emt 0:05:01]} Bxb4 {[%emt 0:00:00]} 29. axb4 {[%emt 0:00:10]} Rb8 {
[%emt 0:00:03]} 30. Rb1 {[%emt 0:00:55]} Rdb7 {[%emt 0:00:05]} 31. Rf5 {
[%emt 0:03:39]} Nc7 {[%emt 0:01:53]} 32. Rc1 {[%emt 0:03:39]} Ne6 {
[%emt 0:00:07]} 33. Rcf1 {[%emt 0:02:31]} Rd7 {[%emt 0:06:00]} 34. Nf3 {
[%emt 0:03:03]} f6 {[%emt 0:00:09]} 35. Re1 {[%emt 0:01:47]} Rd6 {
[%emt 0:00:16]} 36. Rb1 {[%emt 0:00:27]} Rb5 {[%emt 0:00:10]} 37. Ne1 {
[%emt 0:04:36]} Nd4 {[%emt 0:00:30]} 38. Rf2 {[%emt 0:00:10]} Rdb6 {
[%emt 0:02:25]} 39. Rfb2 {[%emt 0:00:26]} Kf7 {[%emt 0:01:03]} 40. Kf2 {
[%emt 0:00:22]} Nc6 {[%emt 0:00:08]} 41. Nc2 {[%emt 0:00:35]} d4 {
[%emt 0:00:07]} 42. Rb3 {[%emt 0:00:00]} h5 {[%emt 0:01:05]} 43. g3 {
[%emt 0:01:27]} Ke6 {[%emt 0:00:11]} 44. Kf3 {[%emt 0:00:53]} Kd5 {
[%emt 0:00:23]} 45. Ra3 {[%emt 0:02:16]} Ne5+ {[%emt 0:00:50]} 46. Kg2 {
[%emt 0:00:14]} Rc6 {[%emt 0:00:15]} 47. Rb2 {[%emt 0:00:17]} Rc3 {
[%emt 0:02:35]} 48. Rxc3 {[%emt 0:00:15]} dxc3 {[%emt 0:00:01]} 49. Rb3 {
[%emt 0:00:13]} Nxd3 {[%emt 0:00:04]} 50. Rxc3 {[%emt 0:00:04]} Nxb4 {
[%emt 0:00:00]} 51. Nxb4+ {[%emt 0:00:47]} Rxb4 {[%emt 0:00:02]} 52. Rc7 {
[%emt 0:00:00]} g5 {[%emt 0:00:18]} 53. Rh7 {[%emt 0:00:05]} Ke4 {
[%emt 0:00:02]} 54. Re7+ {[%emt 0:00:10]} Kf5 {[%emt 0:00:02]} 55. Re2 {
[%emt 0:00:04]} h4 {[%emt 0:00:00]} 56. gxh4 {[%emt 0:00:03]} Rxh4 {
[%emt 0:00:02]} 57. Kg3 {[%emt 0:00:05]} Rb4 {[%emt 0:00:04]} 58. Rf2+ {
[%emt 0:00:03]} Ke5 {[%emt 0:00:06]} 59. Re2+ {[%emt 0:00:06]} Kf5 {
[%emt 0:00:03]} 60. Rf2+ {[%emt 0:00:01]} Kg6 {[%emt 0:00:00]} 61. Rf3 {
[%emt 0:00:08]} Rc4 {[%emt 0:00:03]} 62. Rd3 {[%emt 0:00:03]} Rb4 {
[%emt 0:00:07]} 63. Rc3 {[%emt 0:00:02]} Re4 {[%emt 0:00:01]} 64. Kf3 {
[%emt 0:00:06]} Kf5 {[%emt 0:00:23]} 65. Rc5+ {[%emt 0:00:03]} Re5 {
[%emt 0:00:01]} 66. Rc6 {[%emt 0:00:04]} Rb5 {[%emt 0:00:02]} 67. Rc3 {
[%emt 0:00:02]} Kg6 {[%emt 0:00:13]} 68. Rd3 {[%emt 0:00:02]} Kh5 {
[%emt 0:00:03]} 69. Kg3 {[%emt 0:00:00]} f5 {[%emt 0:00:15]} 70. Rd8 {
[%emt 0:00:07]} Rb3+ {[%emt 0:00:09]} 71. Kg2 {[%emt 0:00:01]} Rb2+ {
[%emt 0:00:01]} 72. Kf3 {[%emt 0:00:06]} Rb3+ {[%emt 0:01:29]} 73. Kg2 {
[%emt 0:00:01]} Rb6 {[%emt 0:00:08]} 74. Kf3 {[%emt 0:00:00]} Kg6 {
[%emt 0:00:01]} 75. Re8 {[%emt 0:00:05]} Rb3+ {[%emt 0:00:07]} 76. Kg2 {
[%emt 0:00:03]} Kf6 {[%emt 0:00:00]} 77. Re2 {[%emt 0:00:04]} Rc3 {
[%emt 0:00:05]} 78. Rb2 {[%emt 0:00:23]} Re3 {[%emt 0:00:02]} 79. Rb5 {
[%emt 0:00:07]} Rd3 {[%emt 0:00:11]} 80. Rc5 {[%emt 0:00:04]} Ke6 {
[%emt 0:00:01]} 81. Rb5 {[%emt 0:00:10]} Rd5 {[%emt 0:00:01]} 82. Rb8 {
[%emt 0:00:02]} Ke5 {[%emt 0:00:00]} 83. Kf3 {[%emt 0:00:17]} Rd3+ {
[%emt 0:00:07]} 84. Kg2 {[%emt 0:00:01]} Ke4 {[%emt 0:00:05]} 85. Re8+ {
[%emt 0:00:20]} Kf4 {[%emt 0:00:02]} 86. Re2 {[%emt 0:00:04]} Rd5 {
[%emt 0:00:47]} 87. Ra2 {[%emt 0:00:10]} Ke4 {[%emt 0:00:00]} 88. Re2+ {
[%emt 0:00:13]} Kf4 {[%emt 0:00:11]} 89. Rb2 {[%emt 0:00:02]} Rd3 {
[%emt 0:00:24]} 90. Rf2+ {[%emt 0:00:20]} Ke4 {[%emt 0:00:04]} 91. Re2+ {
[%emt 0:00:04]} Kd4 {[%emt 0:00:16]} 92. Re8 {[%emt 0:00:13]} f4 {
[%emt 0:00:00]} 93. Rd8+ {[%emt 0:00:35]} Ke4 {[%emt 0:00:01]} 94. Re8+ {
[%emt 0:00:02]} Kf5 {[%emt 0:00:07]} 95. Rf8+ {[%emt 0:00:08]} Ke6 {
[%emt 0:00:06]} 96. Re8+ {[%emt 0:00:14]} Kf7 {[%emt 0:00:06]} 97. Re5 {
[%emt 0:00:04]} Kf6 {[%emt 0:00:00]} 98. Re8 {[%emt 0:00:05]} Rd2+ {
[%emt 0:00:06]} 99. Kg1 {[%emt 0:00:28]} Kf5 {[%emt 0:00:35]} 100. Rg8 {
[%emt 0:00:47]} f3 {[%emt 0:00:10]} 101. Rf8+ {[%emt 0:00:02]} Ke4 {
[%emt 0:00:01]} 102. Rf7 {[%emt 0:00:53]} Rg2+ {[%emt 0:00:00]} 103. Kh1 {
[%emt 0:00:02]} Ke3 {[%emt 0:00:49]} 104. Rb7 {[%emt 0:00:54]} Re2 {
[%emt 0:00:34]} 105. Re7+ {[%emt 0:00:29]} Kf4 {[%emt 0:00:07]} 106. Rg7 {
[%emt 0:01:57]} Re1+ {[%emt 0:00:03]} 107. Kh2 {[%emt 0:00:01]} f2 0-1

[Event "OGD Prinsenstad-toernooi - A groep"]
[Site "Delft"]
[Date "2013.03.29"]
[Round "1.8"]
[White "Ducarmon, Quinten"]
[Black "Ducarmon, Renzo"]
[Result "1-0"]
[ECO "D34"]
[WhiteElo "2416"]
[BlackElo "2070"]
[PlyCount "55"]
[EventDate "2013.03.29"]
[EventType "swiss"]
[EventRounds "6"]
[EventCountry "NED"]
[Source "DSC"]
[SourceDate "2013.02.04"]
[TimeControl "6000+10"]

1. d4 d5 2. Nf3 Nf6 3. c4 e6 4. Nc3 c5 5. cxd5 exd5 6. g3 Bd6 7. Bg2 O-O 8. O-O
Nc6 9. Bg5 c4 10. Nxd5 Be6 11. Nxf6+ gxf6 12. Bh6 Re8 13. d5 Ne5 14. Nxe5 fxe5
15. dxe6 Rxe6 16. Be3 Qc7 17. Be4 Rd8 18. Qc2 Bf8 19. Rfd1 Rxd1+ 20. Rxd1 b6
21. Bf5 Rc6 22. Rd7 Qb8 23. Bxh7+ Kh8 24. Bf5 Bb4 25. Qe4 Rc8 26. Qh4+ Kg8 27.
Qh7+ Kf8 28. Qh8# 1-0